bitfinex-derivatives/quotes_BTCF0:USTF0_20251115
["timestamp","ask_amount","ask_price","bid_price","bid_amount"]
[1763194425184,0.48151137,96257.0,96256.0,0.0437758]
[1763194425385,0.48251137,96257.0,96256.0,0.0437758]
[1763194426097,0.48251137,96257.0,96256.0,0.0001558]
[1763194426400,0.48251137,96257.0,96251.0,0.00010746]
[1763194426998,0.3608,96252.0,96251.0,0.00010746]
[1763194427298,0.47122019,96252.0,96251.0,0.00010746]
[1763194427893,0.47122019,96252.0,96230.0,0.07459386]
[1763194427894,0.4,96250.0,96246.0,0.00240844]
[1763194428096,0.4,96250.0,96238.0,0.05611267]
[1763194428097,0.3608,96247.0,96211.0,0.04362]
[1763194428290,0.3608,96212.0,96211.0,0.04362]
[1763194428490,0.38374679,96212.0,96211.0,0.04362]
[1763194428690,0.50218431,96212.0,96211.0,0.04362]
[1763194428895,0.50226289,96212.0,96211.0,0.04362]
[1763194429395,0.50326289,96212.0,96211.0,0.04362]
[1763194430293,0.50426289,96212.0,96211.0,0.04362]
[1763194431296,0.50326289,96212.0,96211.0,0.02113]
[1763194431499,0.50426289,96212.0,96210.0,0.01264]
[1763194431698,0.02294679,96211.0,96210.0,0.03377]
[1763194431898,0.02294679,96211.0,96210.0,0.05626]
[1763194432204,0.132054,96211.0,96210.0,0.01264]
[1763194433290,0.132054,96211.0,96202.0,0.00010423]
[1763194433598,0.02294679,96210.0,96202.0,0.00010423]
[1763194433806,0.3608,96203.0,96202.0,0.02123423]
[1763194434105,0.49239292,96203.0,96202.0,0.02123423]
[1763194435100,0.49239292,96203.0,96202.0,0.04372423]
[1763194435297,0.47044613,96203.0,96202.0,0.04372423]
[1763194435702,0.47144613,96203.0,96202.0,0.04372423]
[1763194437502,0.46944613,96203.0,96202.0,0.04372423]
[1763194437804,0.47144613,96203.0,96202.0,0.04372423]
[1763194439805,0.47044613,96203.0,96202.0,0.04372423]
[1763194440013,0.47144613,96203.0,96202.0,0.04372423]
[1763194441614,0.47044613,96203.0,96202.0,0.04372423]
[1763194441807,0.36288548,96203.0,96202.0,0.04372423]
[1763194442212,0.00208548,96203.0,96202.0,0.04372423]
[1763194443209,0.3608,96213.0,96212.0,0.04434]
[1763194444311,0.00015591,96221.0,96220.0,0.04461]
[1763194444619,0.00015591,96221.0,96220.0,0.40760803]
[1763194445010,0.3608,96233.0,96232.0,0.04461]
[1763194445406,0.47356912,96233.0,96232.0,0.04461]
[1763194446616,0.47456912,96233.0,96232.0,0.04461]
[1763194447010,0.47656912,96233.0,96232.0,0.04461]
[1763194450521,0.47656912,96233.0,96232.0,0.0214]
[1763194450709,0.47656912,96233.0,96232.0,0.04461]
[1763194461722,0.47556912,96233.0,96232.0,0.04461]
[1763194461922,0.47456912,96233.0,96232.0,0.04461]
[1763194464821,0.47356912,96233.0,96232.0,0.04461]
[1763194465023,0.47456912,96233.0,96232.0,0.04461]
[1763194466416,0.47356912,96233.0,96232.0,0.04461]
[1763194466617,0.47456912,96233.0,96232.0,0.04461]
[1763194469137,0.49870607,96233.0,96232.0,0.04461]
[1763194470921,0.49770607,96233.0,96232.0,0.04461]
[1763194471127,0.49870607,96233.0,96232.0,0.04461]
[1763194471722,0.49770607,96233.0,96232.0,0.04461]
[1763194471927,0.49770607,96233.0,96230.0,0.00219803]
[1763194471928,0.49870607,96233.0,96230.0,0.00219803]
[1763194472126,0.03727371,96231.0,96223.0,0.00015591]
[1763194472324,0.3608,96224.0,96223.0,0.00015591]
[1763194472626,0.5015404,96224.0,96223.0,0.04360591]
[1763194473736,0.5015404,96224.0,96223.0,0.00015591]
[1763194474929,0.5025404,96224.0,96223.0,0.00015591]
[1763194476833,0.5025404,96224.0,96223.0,0.02178591]
[1763194477033,0.5015404,96224.0,96223.0,0.04360591]
[1763194477333,0.5025404,96224.0,96223.0,0.04360591]
[1763194479836,0.5025404,96224.0,96223.0,0.00015591]
[1763194480343,0.5015404,96224.0,96223.0,0.04360591]
[1763194481333,0.5025404,96224.0,96223.0,0.04360591]
[1763194483630,0.5015404,96224.0,96223.0,0.04360591]
[1763194484734,0.5025404,96224.0,96223.0,0.04360591]
[1763194486936,0.5015404,96224.0,96223.0,0.04360591]
[1763194488739,0.5015404,96224.0,96223.0,0.02178591]
[1763194488934,0.5015404,96224.0,96223.0,0.00015591]
[1763194490127,0.5025404,96224.0,96223.0,0.00015591]
[1763194490735,0.5015404,96224.0,96223.0,0.00015591]
[1763194490940,0.5025404,96224.0,96223.0,0.00015591]
[1763194493630,0.5025404,96224.0,96223.0,0.04360591]
[1763194500252,0.5025404,96224.0,96223.0,0.00015591]
[1763194500751,0.53981411,96224.0,96223.0,0.00015591]
[1763194501053,0.5025404,96224.0,96205.0,0.01362]
[1763194501247,0.3608,96206.0,96200.0,0.03587]
[1763194501451,0.02413695,96205.0,96200.0,0.03587]
[1763194501750,0.02413695,96204.0,96200.0,0.03587]
[1763194502052,0.13611897,96203.0,96200.0,0.03587]
[1763194502346,0.3608,96206.0,96200.0,0.03587]
[1763194502347,0.02413695,96202.0,96200.0,0.03587]
[1763194502646,0.02413695,96201.0,96200.0,0.03687]
[1763194503038,0.13415306,96201.0,96200.0,0.03687]
[1763194503555,0.13415306,96201.0,96200.0,0.03587]
[1763194503752,0.13415306,96201.0,96200.0,0.001]
[1763194504047,0.13415306,96201.0,96200.0,0.03687]
[1763194505045,0.13415306,96201.0,96200.0,0.03587]
[1763194505246,0.13515306,96201.0,96200.0,0.03587]
[1763194506355,0.13515306,96201.0,96200.0,0.05731]
[1763194512851,0.13615306,96201.0,96200.0,0.05731]
[1763194514746,0.13515306,96201.0,96200.0,0.05731]
[1763194514945,0.13615306,96201.0,96200.0,0.05731]
[1763194515349,0.13515306,96201.0,96200.0,0.05731]
[1763194515542,0.13615306,96201.0,96200.0,0.05731]
[1763194517153,0.13515306,96201.0,96200.0,0.05731]
[1763194517353,0.13615306,96201.0,96200.0,0.05731]
[1763194520859,0.13615306,96201.0,96195.0,0.01386]
[1763194521060,0.13615306,96201.0,96192.0,0.01325423]
[1763194521061,0.3608,96196.0,96192.0,0.01325423]
[1763194521260,0.02413695,96195.0,96192.0,0.03585423]
[1763194521461,0.02413695,96194.0,96192.0,0.05698423]
[1763194521650,0.02413695,96193.0,96192.0,0.05698423]
[1763194521851,0.13370954,96193.0,96192.0,0.05698423]
[1763194522051,0.38493695,96193.0,96192.0,0.05698423]
[1763194522266,0.49440366,96193.0,96192.0,0.05698423]
[1763194523761,0.49540366,96193.0,96192.0,0.05698423]
[1763194524063,0.49540366,96193.0,96192.0,0.03585423]
[1763194524465,0.49540366,96193.0,96192.0,0.00010423]
[1763194524764,0.49540366,96193.0,96192.0,0.04383423]
[1763194525065,0.49540366,96193.0,96175.0,0.04042895]
[1763194525258,0.7216,96176.0,96175.0,0.01782895]
[1763194525460,0.74573695,96176.0,96175.0,0.01782895]
[1763194525659,0.85924085,96176.0,96175.0,0.01782895]
[1763194526865,0.85924085,96176.0,96175.0,0.04042895]
[1763194527278,0.85924085,96176.0,96175.0,0.06155895]
[1763194527570,0.85924085,96176.0,96175.0,0.01782895]
[1763194527970,0.85924085,96176.0,96175.0,0.00467895]
[1763194532381,0.07142963,96175.0,96165.0,0.0356]
[1763194532570,0.3608,96166.0,96165.0,0.05699]
[1763194532772,0.38493695,96166.0,96165.0,0.05699]
[1763194533075,0.49413506,96166.0,96165.0,0.05699]
[1763194533677,0.49413506,96166.0,96165.0,0.05799]
[1763194534271,0.49413506,96166.0,96165.0,0.01415]
[1763194534582,0.49413506,96166.0,96165.0,0.05799]
[1763194535178,0.50462345,96166.0,96165.0,0.0366]
[1763194535684,0.50462345,96166.0,96165.0,0.0356]
[1763194535980,0.50462345,96166.0,96165.0,0.01315]
[1763194536277,0.50462345,96166.0,96150.0,0.01286]
[1763194536474,0.50462345,96166.0,96126.0,0.00026008]
[1763194536475,0.3608,96158.0,96145.0,0.01286]
[1763194536775,0.50230787,96158.0,96145.0,0.01286]
[1763194537171,0.55821843,96158.0,96145.0,0.01286]
[1763194537370,0.55821843,96158.0,96140.0,0.01286]
[1763194537371,0.50230787,96158.0,96157.0,0.00112224]
[1763194538978,0.50230787,96158.0,96157.0,0.00012224]
[1763194539773,0.50330787,96158.0,96157.0,0.00012224]
[1763194542579,0.50305708,96158.0,96157.0,0.00012224]
[1763194549893,0.50305708,96158.0,96157.0,0.04396224]
[1763194564900,0.14225708,96158.0,96157.0,0.04396224]
[1763194565501,0.1423644,96158.0,96157.0,0.04396224]
[1763194566402,0.14236073,96158.0,96157.0,0.04396224]
[1763194568207,0.14136073,96158.0,96157.0,0.04396224]
[1763194571194,0.50216073,96158.0,96157.0,0.04396224]
[1763194572499,0.11737092,96158.0,96157.0,0.04396224]
[1763194573199,0.11422358,96158.0,96157.0,0.04396224]
[1763194573406,0.3608,96176.0,96175.0,0.04246]
[1763194573797,0.47505294,96176.0,96175.0,0.04246]
[1763194573998,0.49894817,96176.0,96175.0,0.04246]
[1763194575601,0.49994817,96176.0,96175.0,0.04246]
[1763194577406,0.49894817,96176.0,96175.0,0.04246]
[1763194577705,0.49994817,96176.0,96175.0,0.04246]
[1763194579703,0.49894817,96176.0,96175.0,0.04246]
[1763194579902,0.49994817,96176.0,96175.0,0.04246]
[1763194580503,0.49894817,96176.0,96175.0,0.04246]
[1763194582111,0.49994817,96176.0,96175.0,0.04246]
[1763194582310,0.49994817,96176.0,96175.0,0.02128]
[1763194582506,0.49994817,96176.0,96173.0,0.03539]
[1763194582715,0.02389523,96175.0,96173.0,0.03539]
[1763194582902,0.02389523,96174.0,96173.0,0.03539]
[1763194583103,0.13260477,96174.0,96173.0,0.03539]
[1763194584704,0.13260477,96174.0,96173.0,0.01367]
[1763194584911,0.13260477,96174.0,96170.0,0.0429]
[1763194585111,0.02389523,96173.0,96170.0,0.0429]
[1763194585498,0.11630135,96172.0,96170.0,0.0429]
[1763194585698,0.02389523,96171.0,96170.0,0.0429]
[1763194586105,0.14019658,96171.0,96170.0,0.0429]
[1763194586306,0.50099658,96171.0,96166.0,0.03539]
[1763194586509,0.02389523,96170.0,96166.0,0.03539]
[1763194586814,0.11703096,96169.0,96160.0,0.00219803]
[1763194587007,0.3608,96161.0,96160.0,0.00219803]
[1763194587214,0.38470139,96161.0,96160.0,0.00219803]
[1763194587511,0.50173235,96161.0,96160.0,0.00219803]
[1763194588424,0.50173235,96161.0,96160.0,0.04612803]
[1763194592718,0.47783096,96161.0,96160.0,0.04612803]
[1763194593411,0.11703096,96161.0,96160.0,0.15018893]
[1763194593809,0.11400607,96170.0,96169.0,0.04392]
[1763194594015,0.3608,96182.0,96181.0,0.04392]
[1763194594210,0.38472691,96182.0,96181.0,0.04392]
[1763194594406,0.49873298,96182.0,96181.0,0.04392]
[1763194595118,0.49973298,96182.0,96181.0,0.04392]
[1763194596610,0.50073298,96182.0,96181.0,0.04392]
[1763194606923,0.49973298,96182.0,96181.0,0.04392]
[1763194607230,0.50073298,96182.0,96181.0,0.04392]
[1763194609022,0.49973298,96182.0,96181.0,0.04392]
[1763194609528,0.47580607,96182.0,96181.0,0.04392]
[1763194611526,0.47480607,96182.0,96181.0,0.04392]
[1763194613933,0.47580607,96182.0,96181.0,0.04392]
[1763194614630,0.47480607,96182.0,96181.0,0.04392]
[1763194614830,0.47580607,96182.0,96181.0,0.04392]
[1763194616235,0.47480607,96182.0,96181.0,0.04392]
[1763194617723,0.47580607,96182.0,96181.0,0.04392]
[1763194618222,0.11500607,96182.0,96181.0,0.04392]
[1763194619434,0.13892838,96182.0,96181.0,0.04392]
[1763194620134,0.13792838,96182.0,96181.0,0.04392]
[1763194622631,0.49872838,96182.0,96181.0,0.04392]
[1763194623032,0.49972838,96182.0,96181.0,0.04392]
[1763194626032,0.49972838,96182.0,96173.0,0.01315]
[1763194626239,0.3608,96174.0,96173.0,0.05716]
[1763194626436,0.38472231,96174.0,96173.0,0.05716]
[1763194626635,0.50447754,96174.0,96173.0,0.05716]
[1763194627542,0.50447754,96174.0,96170.0,0.03822803]
[1763194627845,0.02392231,96173.0,96170.0,0.05935803]
[1763194628036,0.02392231,96172.0,96170.0,0.05935803]
[1763194628236,0.02392231,96171.0,96170.0,0.05935803]
[1763194628642,0.14203019,96171.0,96170.0,0.05935803]
[1763194631548,0.14195072,96171.0,96170.0,0.05935803]
[1763194636947,0.11810788,96171.0,96170.0,0.05935803]
[1763194637344,0.11014879,96173.0,96172.0,0.04475]
[1763194637544,0.11014879,96181.0,96180.0,0.0587]
[1763194637745,0.02376233,96181.0,96180.0,0.06089803]
[1763194638044,0.1427906,96181.0,96180.0,0.06089803]
[1763194639348,0.1437906,96181.0,96180.0,0.06089803]
[1763194640749,0.1427906,96181.0,96180.0,0.06089803]
[1763194641452,0.1427906,96181.0,96175.0,0.01395]
[1763194641649,0.02376233,96180.0,96175.0,0.0587]
[1763194642049,0.1083029,96179.0,96175.0,0.0587]
[1763194642249,0.02376233,96178.0,96175.0,0.0587]
[1763194642555,0.13991596,96177.0,96175.0,0.0587]
[1763194642756,0.02376233,96176.0,96175.0,0.0587]
[1763194643156,0.13991596,96176.0,96175.0,0.0587]
[1763194643462,0.13991596,96176.0,96175.0,0.03603]
[1763194643657,0.13991596,96176.0,96175.0,0.01395]
[1763194644652,0.13991596,96176.0,96175.0,0.03603]
[1763194644958,0.13991596,96176.0,96175.0,0.01395]
[1763194645250,0.14091596,96176.0,96170.0,0.06009803]
[1763194645460,0.3608,96171.0,96170.0,0.06009803]
[1763194645756,0.50129543,96171.0,96170.0,0.06009803]
[1763194647255,0.50129543,96171.0,96170.0,0.01534803]
[1763194647963,0.50129543,96171.0,96170.0,0.06046803]
[1763194656566,0.50129543,96171.0,96160.0,0.01395]
[1763194656766,0.02376233,96170.0,96160.0,0.01395]
[1763194656963,0.4775331,96171.0,96160.0,0.01395]
[1763194656964,0.38456233,96169.0,96160.0,0.01395]
[1763194657167,0.02376233,96168.0,96160.0,0.01614803]
[1763194657358,0.02376233,96167.0,96160.0,0.01614803]
[1763194657559,0.14023011,96167.0,96160.0,0.01614803]
[1763194657861,0.14023011,96167.0,96157.0,0.00012224]
[1763194658064,0.3608,96158.0,96157.0,0.00012224]
[1763194658362,0.4991289,96158.0,96157.0,0.00012224]
[1763194660963,0.4991289,96158.0,96157.0,0.04560224]
[1763194662766,0.1383289,96158.0,96157.0,0.04560224]
[1763194662963,0.02376233,96158.0,96157.0,0.04560224]
[1763194663168,0.3608,96178.0,96177.0,0.04548]
[1763194663466,0.4971591,96178.0,96177.0,0.04548]
[1763194665469,0.112651,96178.0,96177.0,0.04548]
[1763194665863,0.12054885,96184.0,96180.0,0.01595803]
[1763194666063,0.3608,96189.0,96180.0,0.01595803]
[1763194666064,0.3608,96189.0,96184.0,0.04548]
[1763194666263,0.02386002,96185.0,96184.0,0.04548]
[1763194666464,0.14440887,96185.0,96184.0,0.04548]
[1763194668467,0.50520887,96185.0,96180.0,0.00219803]
[1763194668667,0.02370411,96184.0,96180.0,0.00219803]
[1763194668867,0.02370411,96183.0,96180.0,0.01595803]
[1763194669068,0.02370411,96182.0,96180.0,0.06143803]
[1763194669268,0.02370411,96181.0,96180.0,0.06143803]
[1763194669465,0.13966548,96181.0,96180.0,0.06143803]
[1763194669668,0.02370411,96181.0,96180.0,0.06143803]
[1763194669870,0.13584728,96181.0,96180.0,0.01595803]
[1763194671277,0.13584728,96181.0,96180.0,0.03839803]
[1763194671878,0.13684728,96181.0,96180.0,0.03839803]
[1763194672968,0.13684728,96181.0,96180.0,0.06143803]
[1763194674478,0.11314317,96181.0,96180.0,0.06143803]
[1763194675566,0.11214317,96181.0,96180.0,0.06143803]
[1763194675972,0.11519089,96184.0,96183.0,0.04548]
[1763194676168,0.0236986,96184.0,96183.0,0.04548]
[1763194676573,0.13888949,96184.0,96183.0,0.04548]
[1763194678580,0.13988949,96184.0,96183.0,0.04548]
[1763194685181,0.13988083,96184.0,96163.0,0.17152]
[1763194685389,0.3608,96167.0,96163.0,0.04304]
[1763194685684,0.10862599,96166.0,96163.0,0.04304]
[1763194687584,0.10862599,96166.0,96165.0,0.04304]
[1763194688498,0.13231991,96166.0,96165.0,0.04304]
[1763194689787,0.10862599,96166.0,96165.0,0.04304]
[1763194690183,0.10987507,96174.0,96173.0,0.05608]
[1763194690385,0.3608,96175.0,96174.0,0.04304]
[1763194690899,0.47711031,96175.0,96174.0,0.04304]
[1763194691083,0.11631031,96175.0,96174.0,0.04304]
[1763194691491,0.11631031,96184.0,96183.0,0.04407]
[1763194691791,0.02376802,96184.0,96183.0,0.04407]
[1763194691994,0.14440873,96184.0,96183.0,0.04407]
[1763194693695,0.14540873,96184.0,96183.0,0.04407]
[1763194694393,0.14440873,96184.0,96183.0,0.04407]
[1763194700495,0.14540873,96184.0,96183.0,0.04407]
[1763194701988,0.14440873,96184.0,96183.0,0.04407]
[1763194704093,0.12064071,96184.0,96183.0,0.04407]
[1763194706587,0.12164071,96184.0,96183.0,0.04407]
[1763194707900,0.50621353,96184.0,96160.0,0.01301]
[1763194708195,0.3608,96171.0,96160.0,0.01301]
[1763194708391,0.02376841,96170.0,96160.0,0.01520803]
[1763194708592,0.02376841,96169.0,96160.0,0.01520803]
[1763194708986,0.11278459,96168.0,96166.0,0.03438]
[1763194709698,0.11278459,96170.0,96166.0,0.01304]
[1763194709894,0.02376635,96169.0,96166.0,0.01304]
[1763194710201,0.14338406,96168.0,96166.0,0.01304]
[1763194710399,0.11961771,96168.0,96166.0,0.01304]
[1763194710598,0.3608,96171.0,96166.0,0.03438]
[1763194710800,0.1433825,96170.0,96166.0,0.03438]
[1763194711100,0.02376479,96169.0,96166.0,0.05542]
[1763194711295,0.02376479,96168.0,96166.0,0.01304]
[1763194711496,0.023764,96167.0,96166.0,0.03438]
[1763194711703,0.14118816,96167.0,96166.0,0.03438]
[1763194711999,0.023764,96167.0,96166.0,0.03438]
[1763194712198,0.13855506,96167.0,96166.0,0.05542]
[1763194712786,0.11479106,96167.0,96166.0,0.05542]
[1763194713298,0.11391068,96170.0,96169.0,0.04238]
[1763194713499,0.3608,96171.0,96170.0,0.04457803]
[1763194713898,0.48029298,96171.0,96170.0,0.04457803]
[1763194714399,0.11949298,96171.0,96170.0,0.04457803]
[1763194714793,0.11949298,96179.0,96178.0,0.04238]
[1763194714989,0.14325826,96179.0,96178.0,0.04238]
[1763194715193,0.02376528,96179.0,96178.0,0.04238]
[1763194715401,0.13505776,96179.0,96178.0,0.04238]
[1763194716095,0.13605776,96179.0,96178.0,0.04238]
[1763194717503,0.13505776,96179.0,96178.0,0.04238]
[1763194718296,0.13605776,96179.0,96178.0,0.04238]
[1763194718904,0.13605776,96179.0,96173.0,0.01301]
[1763194719197,0.02376528,96178.0,96166.0,0.01304]
[1763194719393,0.3608,96168.0,96166.0,0.01304]
[1763194719596,0.3608,96168.0,96160.0,0.05758803]
[1763194719597,0.023775,96167.0,96160.0,0.05758803]
[1763194719802,0.023775,96166.0,96160.0,0.05758803]
[1763194720200,0.11002631,96165.0,96160.0,0.05758803]
[1763194720707,0.3608,96168.0,96160.0,0.05758803]
[1763194720708,0.11002631,96167.0,96160.0,0.05758803]
[1763194720895,0.02377237,96166.0,96160.0,0.05758803]
[1763194721099,0.02377237,96165.0,96160.0,0.05758803]
[1763194721300,0.1133181,96165.0,96160.0,0.05758803]
[1763194721703,0.3608,96168.0,96160.0,0.05758803]
[1763194721900,0.02355714,96167.0,96160.0,0.00219803]
[1763194722203,0.11971022,96165.0,96160.0,0.00219803]
[1763194722415,0.02355714,96164.0,96160.0,0.00219803]
[1763194722599,0.02355714,96163.0,96160.0,0.00219803]
[1763194722800,0.02355714,96162.0,96157.0,0.00012224]
[1763194723011,0.3608,96158.0,96157.0,0.00012224]
[1763194723210,0.38435714,96158.0,96157.0,0.00012224]
[1763194723508,0.49442424,96158.0,96157.0,0.00012224]
[1763194724206,0.49442424,96158.0,96130.0,0.10718787]
[1763194724411,0.3608,96140.0,96138.0,0.05539]
[1763194724907,0.11967382,96139.0,96130.0,0.00219803]
[1763194725308,8.133e-05,96138.0,96130.0,0.00219803]
[1763194725615,0.11523149,96137.0,96135.0,0.02602089]
[1763194725908,0.11523149,96137.0,96136.0,0.04238]
[1763194727313,0.11523149,96137.0,96136.0,0.04338]
[1763194731116,8.133e-05,96138.0,96137.0,0.04238]
[1763194732409,8.133e-05,96138.0,96137.0,0.04338]
[1763194735714,0.10718787,96160.0,96157.0,0.04238]
[1763194735914,0.38446112,96158.0,96157.0,0.04238]
[1763194736214,0.49659912,96158.0,96157.0,0.04238]
[1763194736914,0.49766201,96158.0,96157.0,0.04238]
[1763194738106,0.49766201,96158.0,96157.0,0.02119]
[1763194738516,0.49766201,96158.0,96157.0,0.04416]
[1763194740917,0.47415688,96158.0,96157.0,0.04416]
[1763194741615,0.11335688,96158.0,96157.0,0.04416]
[1763194741820,0.00121888,96158.0,96157.0,0.04416]
[1763194742007,0.3608,96185.0,96184.0,0.04416]
[1763194742215,0.38432309,96185.0,96184.0,0.04416]
[1763194742415,0.49974868,96185.0,96184.0,0.04416]
[1763194743520,0.50074868,96185.0,96184.0,0.04416]
[1763194744121,0.50174868,96185.0,96184.0,0.04416]
[1763194745113,0.50074868,96185.0,96184.0,0.04416]
[1763194745318,0.50174868,96185.0,96184.0,0.04416]
[1763194746525,0.50074868,96185.0,96184.0,0.04416]
[1763194746717,0.50174868,96185.0,96184.0,0.04416]
[1763194748330,0.50174299,96185.0,96184.0,0.04416]
[1763194748624,0.47822559,96185.0,96184.0,0.04416]
[1763194750227,0.47722559,96185.0,96184.0,0.04416]
[1763194751619,0.47622559,96185.0,96184.0,0.04416]
[1763194751819,0.47722559,96185.0,96184.0,0.04416]
[1763194753832,0.47722559,96185.0,96184.0,0.04352]
[1763194754523,0.47722559,96185.0,96180.0,0.03734803]
[1763194754729,0.47722559,96185.0,96180.0,0.05967803]
[1763194754914,0.47622559,96185.0,96180.0,0.05967803]
[1763194755120,0.47722559,96185.0,96180.0,0.05967803]
[1763194755829,0.47722559,96185.0,96184.0,0.04363]
[1763194756226,0.47822559,96185.0,96184.0,0.04363]
[1763194756827,0.47722559,96185.0,96184.0,0.04363]
[1763194758127,0.47622559,96185.0,96184.0,0.04363]
[1763194766434,0.11542559,96185.0,96184.0,0.04363]
[1763194766834,0.11268761,96193.0,96192.0,0.014]
[1763194767036,0.02352088,96193.0,96192.0,0.05763]
[1763194767336,0.14333692,96193.0,96192.0,0.05763]
[1763194784251,0.14333692,96193.0,96180.0,0.03654]
[1763194784448,0.3608,96187.0,96186.0,0.04575]
[1763194784651,0.38432088,96187.0,96186.0,0.04575]
[1763194784948,0.49567579,96187.0,96186.0,0.04575]
[1763194789142,0.49567579,96187.0,96185.0,0.01386]
[1763194789143,0.49567579,96187.0,96180.0,0.0596]
[1763194789343,0.02352088,96186.0,96180.0,0.0596]
[1763194789745,0.10923093,96185.0,96180.0,0.03654]
[1763194789943,0.02352088,96184.0,96180.0,0.03654]
[1763194790367,0.11726392,96183.0,96180.0,0.03654]
[1763194790553,0.02352088,96182.0,96175.0,0.05990599]
[1763194790853,0.3608,96177.0,96175.0,0.05990599]
[1763194791047,0.02352088,96176.0,96175.0,0.05990599]
[1763194791249,0.14015018,96176.0,96175.0,0.05990599]
[1763194793355,0.1166293,96176.0,96175.0,0.05990599]
[1763194794056,0.1166293,96176.0,96175.0,0.06090599]
[1763194794557,0.1166293,96176.0,96175.0,0.05990599]
[1763194797552,0.10875744,96186.0,96185.0,0.01386]
[1763194797851,0.02354193,96186.0,96185.0,0.05961]
[1763194798256,0.13250189,96186.0,96185.0,0.05961]
[1763194800549,0.10895996,96186.0,96185.0,0.05961]
[1763194803461,0.00015599,96194.0,96185.0,0.05961]
[1763194803462,0.10884143,96193.0,96192.0,0.04489]
[1763194803646,0.02354904,96193.0,96192.0,0.04489]
[1763194803852,0.13239047,96193.0,96192.0,0.04489]
[1763194807354,0.65564,96272.0,96266.0,0.17816086]
[1763194807552,0.7216,96267.0,96210.0,0.05839]
[1763194807749,0.3608,96223.0,96222.0,0.04489]
[1763194807959,0.3843504,96223.0,96222.0,0.04489]
[1763194808264,0.11548964,96223.0,96222.0,0.04489]
[1763194808659,0.11548964,96229.0,96222.0,0.04489]
[1763194808859,0.4,96230.0,96225.0,0.03542]
[1763194809060,0.10724257,96232.0,96225.0,0.05839]
[1763194809363,0.10980227,96229.0,96228.0,0.04489]
[1763194809556,0.10980227,96231.0,96230.0,0.03761803]
[1763194809755,0.00015581,96232.0,96230.0,0.01569803]
[1763194809951,0.10980227,96231.0,96230.0,0.00219803]
[1763194811364,0.11080227,96231.0,96230.0,0.00219803]
[1763194812264,0.11280227,96231.0,96230.0,0.00219803]
[1763194813155,0.11180227,96231.0,96230.0,0.00219803]
[1763194813361,0.11280227,96231.0,96230.0,0.00219803]
[1763194813863,0.11180227,96231.0,96230.0,0.00219803]
[1763194814167,0.11280227,96231.0,96230.0,0.00219803]
[1763194819865,0.11280227,96231.0,96219.0,0.3608]
[1763194820169,0.3608,96226.0,96220.0,0.00219803]
[1763194820468,0.11077283,96225.0,96220.0,0.00219803]
[1763194821567,0.11277283,96225.0,96220.0,0.00219803]
[1763194822969,0.11177283,96225.0,96220.0,0.00219803]
[1763194823162,0.11277283,96225.0,96220.0,0.00219803]
[1763194823572,0.11177283,96225.0,96220.0,0.00219803]
[1763194823764,0.11277283,96225.0,96220.0,0.00219803]
[1763194825774,0.11277283,96225.0,96220.0,0.09372803]
[1763194826674,0.11177283,96225.0,96220.0,0.09372803]
[1763194826973,0.11277283,96225.0,96220.0,0.09372803]
[1763194827273,0.11177283,96225.0,96220.0,0.09372803]
[1763194827573,0.11277283,96225.0,96220.0,0.09372803]
[1763194828381,0.11177283,96225.0,96220.0,0.09372803]
[1763194828575,0.11277283,96225.0,96220.0,0.09372803]
[1763194830878,0.11277283,96225.0,96220.0,0.00219803]
[1763194831176,0.11277283,96225.0,96220.0,0.09003803]
[1763194831375,0.11177283,96225.0,96220.0,0.09003803]
[1763194831575,0.11277283,96225.0,96220.0,0.00219803]
[1763194831779,0.11277283,96225.0,96211.0,0.3608]
[1763194832075,0.57497352,96223.0,96211.0,0.3608]
[1763194832279,0.05593774,96218.0,96211.0,0.3608]
[1763194832475,0.05593774,96215.0,96200.0,0.3608]
[1763194832674,0.3608,96214.0,96200.0,0.3608]
[1763194832874,0.46964287,96214.0,96200.0,0.3608]
[1763194833072,0.3608,96214.0,96200.0,0.3608]
[1763194833475,0.47139278,96214.0,96200.0,0.3608]
[1763194833977,0.47239278,96214.0,96200.0,0.3608]
[1763194834479,0.47339278,96214.0,96200.0,0.3608]
[1763194834678,0.47239278,96214.0,96200.0,0.3608]
[1763194834870,0.47339278,96214.0,96200.0,0.3608]
[1763194835478,0.52935793,96214.0,96200.0,0.3608]
[1763194836269,0.52935139,96214.0,96200.0,0.3608]
[1763194837181,0.47339278,96214.0,96200.0,0.3608]
[1763194837480,0.52935139,96214.0,96200.0,0.3608]
[1763194837675,0.52835139,96214.0,96200.0,0.3608]
[1763194837881,0.47339278,96214.0,96190.0,0.02123]
[1763194839175,0.47239278,96214.0,96190.0,0.02123]
[1763194839479,0.47339278,96214.0,96190.0,0.02123]
[1763194839976,0.47239278,96214.0,96190.0,0.02123]
[1763194840278,0.47339278,96214.0,96190.0,0.02123]
[1763194840580,0.54785472,96214.0,96190.0,0.02123]
[1763194840777,0.54685472,96214.0,96190.0,0.02123]
[1763194840977,0.54685472,96214.0,96190.0,0.05432]
[1763194840978,0.54785472,96214.0,96190.0,0.05432]
[1763194841180,0.3608,96198.0,96190.0,0.05432]
[1763194841376,0.3608,96198.0,96190.0,0.05651803]
[1763194841580,0.11039905,96197.0,96190.0,0.05651803]
[1763194841776,0.11039905,96197.0,96190.0,0.09003803]
[1763194843483,0.12091292,96197.0,96190.0,0.09003803]
[1763194845382,0.12091292,96197.0,96196.0,0.06661]
[1763194847076,0.12191292,96197.0,96196.0,0.06661]
[1763194854981,0.11139905,96197.0,96196.0,0.06661]
[1763194867799,0.11139905,96197.0,96196.0,0.09461771]
[1763194869403,0.11139905,96197.0,96196.0,0.06661]
[1763194884307,0.14867057,96197.0,96196.0,0.06661]
[1763194885019,0.14867057,96197.0,96132.0,0.01686]
[1763194885020,0.00999999,96170.0,96132.0,0.01686]
[1763194885200,0.14286044,96146.0,96120.0,0.01686]
[1763194885405,0.75892149,96127.0,96104.0,0.07695]
[1763194885603,0.75892149,96127.0,96104.0,0.01686]
[1763194885604,0.3608,96105.0,96104.0,0.01686]
[1763194885804,0.3887235,96105.0,96096.0,0.07695]
[1763194886006,0.3608,96097.0,96096.0,0.07695]
[1763194886315,0.5020503,96097.0,96096.0,0.07695]
[1763194887806,0.5020503,96097.0,96096.0,0.07795]
[1763194888012,0.5020503,96097.0,96096.0,0.07895]
[1763194889503,0.1412503,96097.0,96096.0,0.07895]
[1763194890617,0.1412503,96097.0,96096.0,0.43975]
[1763194890817,0.1133268,96097.0,96096.0,0.43975]
[1763194891218,0.10892038,96103.0,96102.0,0.06981]
[1763194891418,0.02789018,96103.0,96102.0,0.06981]